Cogmind - Beta 16 @@@ ROGUE MODE // 2026.01.10 @ 12:35:13 Player: Blaf Result: Destroyed by 77-0WC(R) with Subdweller Laser Performance ------------- Evolutions (0) 0 Regions Visited (2) 400 Robots Destroyed (9) 45 Value Destroyed (223) 223 Prototype IDs (0) 0 Alien Tech Used (0) 0 Bonus (0) 0 TOTAL SCORE: 668 Bonus ------- None Cogmind --------- Core Integrity 0/250 Matter 333/500 Energy 250/250 System Corruption 0% Temperature Cool (6) Movement Walking (120) Location -10/Subcaves Parts ------- > --- POWER (1) -------- Ion Engine > --- PROPULSION (2) --- Aluminum Leg Aluminum Leg > --- UTILITY (2) ------ Small Storage Unit High-capacity Matter Pod > --- WEAPON (2) ------- (None) > --- INVENTORY (8) ---- Light Ion Engine Peak State ------------ > --- POWER ------------ Light Ion Engine > --- PROPULSION ------- Aluminum Leg Aluminum Leg > --- UTILITY ---------- Small Storage Unit Visual Processing Unit > --- WEAPON ----------- Assault Rifle Assault Rifle > --- INVENTORY -------- Ion Engine Aluminum Leg Aluminum Leg [Rating: 8] Favorites ----------- Power Light Ion Engine Engine Light Ion Engine Propulsion Aluminum Leg Leg Aluminum Leg Utility Small Storage Unit Device Subdweller Optics Storage Small Storage Unit Processor Visual Processing Unit Weapon Assault Rifle Ballistic Gun Assault Rifle Build | -11 -10 -10 ------- Run | Yrd Mat Sub Slots Evolved . | . . . Power . | . . . Propulsion . | . . . Utility . | . . . Weapon . | . . . Parts Attached 13 | 6 3 4 Power 3 | 1 1 1 Engine 3 | 1 1 1 Core . | . . . Reactor . | . . . Propulsion 4 | 2 1 1 Treads . | . . . Leg 4 | 2 1 1 Wheel . | . . . Hover . | . . . Flight . | . . . Utility 4 | 1 1 2 Device 1 | . . 1 Storage 2 | 1 . 1 Processor 1 | . 1 . Hackware . | . . . Protection . | . . . Artifact . | . . . Weapon 2 | 2 . . Energy Gun . | . . . Energy Cannon . | . . . Ballistic Gun 2 | 2 . . Ballistic Cannon . | . . . Launcher . | . . . Special Weapon . | . . . Impact Weapon . | . . . Slashing Weapon . | . . . Piercing Weapon . | . . . Special Melee Weapon . | . . . Unidentified Prototypes . | . . . Parts Lost 4 | . . 4 Power . | . . . Propulsion 2 | . . 2 Utility . | . . . Weapon 2 | . . 2 Highest Loss Streak 3 | . . 3 To Critical Strikes . | . . . Average Backups 2 | 1 2 3 Power . | . 1 1 Propulsion 1 | 1 1 1 Utility . | . . . Weapon . | . . . Tool/Special . | . . . Unused Backups 2 | . 2 . Power . | . . . Propulsion 2 | . 2 . Utility . | . . . Weapon . | . . . Tool/Special . | . . . Average Slot Usage (%) 91 | . 89 93 Engine 13 | . 13 14 Leg 27 | . 27 26 Device 3 | . . 5 Storage 15 | . 14 17 Processor 5 | . 5 5 Ballistic Gun 24 | . 27 22 Peak Build Rating 8 | 6 8 8 Average Rating 6 | 4 6 7 On Entrance 4 | . 6 8 Avg Prop Armor Cover (%) . | . . . Naked Turns . | . . . Heaviest Build 16 | 14 14 16 Greatest Support 20 | 20 20 20 Greatest Overweight (x) 1 | 1 1 . Average Overweight (x) . | . . . Largest Inventory Capacity 8 | 8 8 8 Average Capacity 7 | 6 8 8 Most Carried 4 | 3 4 4 Average Carried 2 | 1 2 3 Final Capacity 8 | 8 8 8 Final Carried 4 | 3 4 1 Class Distribution -------------------- 100% | Mutant Dominant Class ---------------- Mutant | -10/Materials Mutant | -10/Subcaves Resources | -11 -10 -10 ----------- Run | Yrd Mat Sub Matter Collected 533 | 260 170 103 Remotely . | . . . Salvage Created 352 | . 269 83 Parts 18 | . 12 6 Haulers Intercepted . | . . . Recyclers Shooed 2 | . 2 . Parts Field Recycled . | . . . Retrieved Matter . | . . . Parts Self-Destructed 7 | . . 7 Prevented . | . . . Parts Restored . | . . . Kills | -11 -10 -10 ------- Run | Yrd Mat Sub Combat Hostiles Destroyed 5 | . 3 2 Guns 5 | . 3 2 Classes Destroyed 6 | . 5 1 Worker 1 | . 1 . Builder 1 | . 1 . Recycler 1 | . 1 . Watcher 1 | . 1 . Grunt 3 | . 3 . Subdweller 2 | . . 2 Best Kill Streak 2 | . 2 1 Combat Bots Only 2 | . 2 1 Max Kills in Single Turn 1 | . 1 1 Gunslinging . | . . . Exploded . | . . . Melee . | . . . Uniques/NPCs Destroyed . | . . . Combat | -11 -10 -10 -------- Run | Yrd Mat Sub Hostile Shots Fired 50 | . 15 35 Missed 15 | . 5 10 Hits 35 | . 10 25 Projectile 35 | . 10 25 AOE 2 | . . 2 Damage Taken 858 | . 117 741 Core 268 | . . 268 Absorbed by Shields . | . . . Regen/Repaired (Parts) 43 | . 43 . Core Remaining (%) 100 | 100 . . Volleys Fired 36 | . 21 15 Largest 2 | . 2 2 Hottest 40 | . 40 40 Shots Fired 66 | . 42 24 Gun 66 | . 42 24 Cannon . | . . . Launcher . | . . . Special . | . . . Kinetic 66 | . 42 24 Thermal . | . . . Explosive . | . . . Electromagnetic . | . . . Robot Hit Streak 12 | . 4 12 Robot Miss Streak 3 | . 3 1 Penetration Max . | . . . Secondary Targets 1 | . 1 . Max Gunslinging Chain 1 | . 1 . Shots Hit Robots 42 | . 22 20 Core Hits 17 | . 11 6 Critical Kills . | . . . Critical Parts Destroyed . | . . . Critical Strikes . | . . . Melee Attacks . | . . . Impact . | . . . Slashing . | . . . Piercing . | . . . Sneak Attacks . | . . . Combat Hostiles . | . . . Follow-up Attacks . | . . . Damage Inflicted 608 | . 303 305 Guns 569 | . 303 266 Cannons . | . . . Explosions . | . . . Melee . | . . . Ramming 39 | . . 39 Kinetic 569 | . 303 266 Thermal . | . . . Explosive . | . . . Electromagnetic . | . . . Impact . | . . . Slashing . | . . . Piercing . | . . . Highest Corruption . | . . . Average Corruption . | . . . Corruption Purged . | . . . Corruption Blocked . | . . . Overload Shots . | . . . Overflow Damage . | . . . Projectiles . | . . . Explosions . | . . . Melee . | . . . Knockbacks . | . . . Impact . | . . . Kinetic . | . . . Secondary . | . . . Self-Inflicted Damage . | . . . Shots . | . . . Rammed . | . . . Targets Rammed 18 | . . 18 Kicked 18 | . . 18 Crushed . | . . . Highest Temperature 2 | . 2 . Average Temperature 2 | . 2 . Received Heat Transfer 219 | . 63 156 Siege Activations . | . . . Martial Activations . | . . . Shielding Activations . | . . . Robots Disrupted . | . . . Combat Hostiles . | . . . Robots Corrupted . | . . . Combat Hostiles . | . . . Parts Fried . | . . . Impact Corruptions . | . . . Robots Melted . | . . . Combat Hostiles . | . . . Parts Melted . | . . . Heat Transferred . | . . . Parts Sabotaged . | . . . Parts Stolen . | . . . Parts Stripped . | . . . Power Chain Reactions . | . . . Alert | -11 -10 -10 ------- Run | Yrd Mat Sub Maximum Alert Level . | . . . Low Security (%) 100 | 100 100 . Level 1 . | . . . Level 2 . | . . . Level 3 . | . . . Level 4 . | . . . Level 5 . | . . . High Security . | . . . Max Security . | . . . Peak Influence 41 | . 41 . Initial . | . . . Average 5 | . 6 . Influence Increases 103 | . 103 . Destroy 0b10 Robot/C 60 | . 60 . Destroy 0b10 Robot/NC 20 | . 20 . Destroy Leader 22 | . 22 . Destroy Structure 1 | . 1 . Influence Decreases 103 | . 103 . Time Decay 103 | . 103 . Squads Dispatched 1 | . 1 . Investigation . | . . . Extermination . | . . . Reinforcement 1 | . 1 . Assault . | . . . Garrison . | . . . Intercept . | . . . Searches Triggered . | . . . Construction Impeded . | . . . Haulers Reinforced . | . . . Active Scanning Responses . | . . . Cargo Convoy Interrupts . | . . . Stealth | -11 -10 -10 --------- Run | Yrd Mat Sub Distress Signals . | . . . Communications Jammed . | . . . Distress Signals . | . . . Times Spotted 10 | . 5 5 Peak Tracking Total 2 | . 2 2 Tactical Retreats . | . . . Traps | -11 -10 -10 ------- Run | Yrd Mat Sub Traps Triggered 4 | . 2 2 Indirectly . | . . . Trap Hack Attempts . | . . . Triggered . | . . . Disarmed . | . . . Reprogrammed . | . . . Reused . | . . . Traps Extracted . | . . . Installed . | . . . Triggered . | . . . Machines | -11 -10 -10 ---------- Run | Yrd Mat Sub Machines Disabled . | . . . Max in Single Turn . | . . . Machines Repaired . | . . . Machines Dismantled . | . . . Machines Sabotaged . | . . . Overloaded Fab Kills . | . . . Hacking | -11 -10 -10 --------- Run | Yrd Mat Sub Machines Accessed 2 | . 1 1 Terminals . | . . . Fabricators . | . . . Repair Stations 1 | . 1 . Recycling Units . | . . . Scanalyzers . | . . . Garrison Access . | . . . Total Hacks 5 | . 2 3 Successful 5 | . 2 3 Failed . | . . . Catastrophic . | . . . Database Lockouts . | . . . Manual . | . . . Terminals . | . . . Fabricators . | . . . Repair Stations 2 | . 2 . Recycling Units . | . . . Scanalyzers . | . . . Garrison Access . | . . . Terminal Hacks 3 | . . 3 Record 3 | . . 3 Fabricator Hacks . | . . . Repair Station Hacks 2 | . 2 . Scan Component 1 | . 1 . Repair 1 | . 1 . Recycling Unit Hacks . | . . . Scanalyzer . | . . . Garrison Access Hacks . | . . . Unauthorized Hacks . | . . . Terminals . | . . . Fabricators . | . . . Repair Stations . | . . . Recycling Units . | . . . Scanalyzers . | . . . Garrison Access . | . . . Data Cores Recovered . | . . . Used . | . . . Hacking Detections . | . . . Full Trace Events . | . . . Feedback Events . | . . . Feedback Blocked . | . . . Robot Schematics Acquired . | . . . Robots Built . | . . . Authchips . | . . . Time . | . . . Total Robot Build Rating . | . . . Part Schematics Acquired . | . . . Parts Built . | . . . Authchips . | . . . Time . | . . . Total Part Build Rating . | . . . Part Studies Acquired . | . . . Parts Repaired 1 | . 1 . Time 13 | . 13 . Parts Recycled . | . . . Recycled Matter . | . . . Retrieved Matter . | . . . Retrieved Components . | . . . Parts Scanalyzed . | . . . Part Schematics Acquired . | . . . Parts Damaged . | . . . Bothacking | -11 -10 -10 ------------ Run | Yrd Mat Sub Used RIF Installer . | . . . Robots Hacked . | . . . Non-combat . | . . . Combat . | . . . Robot Hacks Applied . | . . . Relay Couplers Released . | . . . Fabnet Peak Effective % . | . . . Robots Rewired . | . . . Allies Hacked . | . . . Hacks Repelled . | . . . Allies | -11 -10 -10 -------- Run | Yrd Mat Sub Total Allies . | . . . Largest Group . | . . . Highest-Rated Group . | . . . Highest-Rated Ally . | . . . Total Orders . | . . . Ally Attacks . | . . . Total Damage . | . . . Kills . | . . . Allies Corrupted . | . . . Allies Melted . | . . . Intel | -11 -10 -10 ------- Run | Yrd Mat Sub Active Infowar (turns) 674 | . 202 472 Optics 674 | . 202 472 Robot Analysis Total . | . . . Derelict Logs Recovered 1 | . . 1 Drone Launches . | . . . Drone Recoveries . | . . . Exploration | -11 -10 -10 ------------- Run | Yrd Mat Sub Turns Passed 1233 | 80 527 626 Spaces Moved 878 | 61 362 455 Core 7 | 7 . . Treads . | . . . Legs 871 | 54 362 455 Wheels . | . . . Hover . | . . . Flight . | . . . Fastest Speed 50 | 50 120 120 Average Speed 119 | 112 120 120 Slowest Speed 190 | 120 190 120 Overloaded Moves . | . . . Propulsion Burnouts . | . . . Robots Hopped . | . . . Potential Cave-ins . | . . . Cave-ins Triggered . | . . . Exploration Rate (%) 21 | 4 38 21 Regions Visited 2 Branch Regions 1 Pre-discovered Areas 1 | . . 1 Known Exits Taken . | . . . Unknown Exits Taken 2 | 1 1 . Scrap Searched . | . . . Spaces Dug . | . . . Terrain Destroyed . | . . . Melee . | . . . Projectile . | . . . AOE . | . . . Terrain Rammed . | . . . Walls Destroyed . | . . . Machines Disabled . | . . . Actions | -11 -10 -10 --------- Run | Yrd Mat Sub Total 985 | 69 409 507 Wait 25 | . 14 11 Move 876 | 60 361 455 Hop . | . . . Pick Up 6 | 3 3 . Fast Attach 15 | 6 8 1 Attach 3 | . . 3 Detach . | . . . Swap 1 | . . 1 Drop 4 | . 2 2 Fire 36 | . 21 15 Melee . | . . . Ram . | . . . Kick 18 | . . 18 Crush . | . . . Escape Stasis . | . . . Rewire 1 | . . 1 Trap . | . . . Miscellaneous . | . . . Route ------- -11/Scrapyard -10/Materials (discovered 2 exits: [*Mat] / *Sub) -10/Subcaves History --------- Turn | Location | Event 17 | -11/Scrapyard | Discovered new exit (range 15) 81 | -11/Scrapyard | Entered Materials 315 | -10/Materials | Build established: Mutant 446 | -10/Materials | Repaired Assault Rifle 486 | -10/Materials | Discovered new exit (range 7) 594 | -10/Materials | Discovered new exit (range 6) 608 | -10/Materials | Entered Subcaves 609 | -10/Subcaves | Approached by a straggling Scientist 610 | -10/Subcaves | Learned location of Zion (-7) 653 | -10/Subcaves | A swath of the cavern ceiling suddenly collapsed 808 | -10/Subcaves | Ambushed by Subdweller buried in earth 1011 | -10/Subcaves | Ambushed by Subdwellers from Twisted Machinery 1061 | -10/Subcaves | Core integrity fell below 50% 1098 | -10/Subcaves | Lost 3 parts (2n1w) 1202 | -10/Subcaves | Visited Clippyterm 1205 | -10/Subcaves | Learned Factory garrison access intel 1215 | -10/Subcaves | Core integrity fell below 20% 1234 | -10/Subcaves | Destroyed by 77-0WC(R) with Subdweller Laser Last Messages --------------- queries and responses. --DD-NU8 >>Record! "Tag" It looks like you don't want to be "it," would you like help? Data stored: Factory garrison access intel. >>Record! "SUBCON Basin" It looks like you want to play with dangerous UFD tech. While I can't recommend taking subatomizers out of the Subcaves, I can warn that doing so is a one-way ticket to summoning unimaginable chaos on any area not hardened against them. That includes... just about anywhere. 01213_ Kicked 77-0WC(R). 01215_ Kicked 77-0WC(R) out of the way. 01221_ Kicked 77-0WC(R). 01222_ Kicked 77-0WC(R) out of the way. 01228_ Kicked 77-0WC(R). 01229_ Kicked 77-0WC(R) out of the way. 01230_ Kicked 77-0WC(R). Map ----- +----------------------------------------------------+ | ?????????????????????????????????????????????????? | | ?????????????????????????????????????????????????? | | ?????????????????????????????????????????????????? | | ?????????????????????????????????????????????????? | | ?????????????????????????????????????????????????? | | ?????????????????????????????????????????????????? | | ??????????###???????####?????????????????????????? | | ???######## ######### ##?????????######????##???? | | ??## & ## ## ###???????# "###### # # | | ??# " ##?###### """ " | | ??# ### # # " # ??? | | ??## " " #### ## ## ### ??? | | ???##|# #??# ##### "#???##### ### | | ?#### #"##"####??###???## ### "#?????# | | ## # ##????????????????# ##### "#?????# | | # #????????????????# "##### "#????# | | # # #????????????????# " ###### " #???# | | ## #????????????????## " #????# ##???# | | # ##?????????????????# ##????##????# | | #?????????????????# ## ########???## | | #?????????????????# #### ## " ##???### | | ###???????????????# ###### " #?????? | | #??????????######## "## ##?????? | | ## ##??????????#"""### " #### ######??? | | ?# #???????????#"" ## "#???# ###"""???? | | ?# ##???????????#"X @ ##???# ##""#????? | | ?## #????????????#""R## ##???## "#"#?????? | | ?## ##????????????#"""## #?#### #""####### | | ?# ##?????????????###### ### ## """" "" " | | ?# #??????????????????# ###""#####" | | ## #??????????????????## ######"####" | | # #???????????????????## # # #??#####?### | | # #????????????????????##### #??????????? | | ##????????????????????????## ###??????????? | | # "#?????????????????????????## ##??#####????? | | ## "#??????????????????????????## #### ##???? | | #""* "##??????????????????????????# #???? | | #" = [ #??????????????????????????# #???? | | " &"##?????????????????????????## #??## | | # " #?????????????????????????## #### | | "###?????????????????????????# ## ##""" | | ##???????????????????????????# ### | | ##????????????????????????????## ##### | | ^???????????????????????????????## #### | | ##????????????????????????????????### | | ????????????????????????????????????## | | ?????????????????????????????????????# ## | | ?????????????????????????????????????# ### ## | | ?????????????????????????????????????###### ### | | ????????????????????????????????????????# ## | +----------------------------------------------------+ Best States ------------- Heat Dissipation 25 Energy Generation 10 Energy Capacity 250 Matter Stores 320 Matter Capacity 500 Sight Range 21 Terrain Scan Density 10 Evasion (%) 55 Item Schematics ----------------- None Robot Schematics ------------------ None Fabricated ------------ Nothing Repaired ---------- Assault Rifle | 57% | -10/Materials Studied --------- None Alien Tech Used ----------------- None Achievements -------------- None Challenges ------------ None Game ------ Seed PersonalEncryptedHumpback Manual? 0 Play Time 00:12:24 Cumulative 6.6 hours Start 2026.01.10 @ 12:23:47 End 2026.01.10 @ 12:35:13 Sessions 1 Manual Loads 0 Difficulty Rogue Special Mode None Game No. 18 Rogue 18 Adventurer 0 Explorer 0 Win Type - Total 0 Types 0/0/0/0/0/0/0/0/0/0 Lore% 1 Gallery% 7 Achievement% 7 Wizard Run 0 Options --------- Layout 1 ASCII 0 Keyboard 0 Movement Arrows Keybinds 0 Fullscreen 1 Font 24/Smallcaps Map View 50x35 Zoom Use 0% Tactical HUD 1 Map Filters NONE Filters NONE Steam 1 RUN: 45739e2b-ead3-48fd-8e5e-21a7a1e30cd0